lending/lending_fUSD_20240131
["ID","MTS","AMOUNT","RATE_DAILY","PERIOD"]
[313055424,1706695850179,-500.0,0.00038904,5]
[313055425,1706695850188,-500.0,0.00038904,5]
[313055426,1706695850197,-500.0,0.00038904,5]
[313055427,1706695850207,-820.59,0.00038904,5]
[313055428,1706695850217,-770.53,0.00038904,5]
[313055429,1706695850226,-610.83132327,0.00038904,5]
[313055430,1706695850236,-1205.71,0.00038904,5]
[313055431,1706695850245,-1063.39,0.00038904,5]
[313055432,1706695850254,-841.64,0.00038904,5]
[313055433,1706695850264,-500.0,0.00038904,5]
[313055434,1706695850273,-500.0,0.00038904,5]
[313055435,1706695850282,-500.0,0.00038904,5]
[313055436,1706695850292,-500.0,0.00038904,5]
[313055437,1706695850302,-769.04,0.00038904,5]
[313055438,1706695850311,-500.0,0.00038904,5]
[313055439,1706695850321,-594.49,0.00038904,5]
[313055440,1706695850330,-500.0,0.00038904,5]
[313055441,1706695850339,-500.0,0.00038904,5]
[313055442,1706695850349,-500.0,0.00038904,5]
[313055443,1706695850358,-500.0,0.00038904,5]
[313055444,1706695850367,-571.23,0.00038904,5]
[313055445,1706695850377,-519.90884949,0.00038904,5]
[313055446,1706695850386,-500.0,0.00038904,5]
[313055447,1706695850396,-500.0,0.00038904,5]
[313055448,1706695850405,-789.34,0.00038904,5]
[313055449,1706695850415,-533.01,0.00038904,5]
[313055450,1706695850424,-792.58,0.00038904,5]
[313055451,1706695850434,-2040.04,0.00038904,5]
[313055452,1706695850444,-500.0,0.00038904,5]
[313055453,1706695850454,-158.25181109,0.00038904,5]
[313055454,1706695850463,-1920.57,0.00038904,5]
[313055455,1706695850472,-504.5,0.00038904,5]
[313055456,1706695850482,-885.24,0.00038904,5]
[313055457,1706695850491,-500.0,0.00038904,5]
[313055458,1706695850500,-646.2,0.00038904,5]
[313055459,1706695850509,-1249.79,0.00038904,5]
[313055460,1706695850519,-173.55157183,0.00038904,5]
[313055461,1706695850528,-1122.63,0.00038904,5]
[313055462,1706695850537,-500.0,0.00038904,5]
[313055463,1706695850548,-4431.96,0.00038904,5]
[313055464,1706695850557,-500.0,0.00038904,5]
[313055465,1706695850566,-500.0,0.00038904,5]
[313055466,1706695850575,-500.0,0.00038904,5]
[313055467,1706695850584,-500.0,0.00038904,5]
[313055468,1706695850593,-634.66,0.00038904,5]
[313055469,1706695850603,-2108.32,0.00038904,5]
[313055470,1706695850612,-500.0,0.00038904,5]
[313055471,1706695850622,-500.0,0.00038904,5]
[313055472,1706695850631,-500.0,0.00038904,5]
[313055473,1706695850645,-500.0,0.00038904,5]
[313055474,1706695850654,-1032.86,0.00038904,5]
[313055475,1706695850663,-500.0,0.00038904,5]
[313055476,1706695850672,-861.25,0.00038904,5]
[313055477,1706695850682,-861.89,0.00038904,5]
[313055478,1706695850691,-500.0,0.00038904,5]
[313055479,1706695850703,-1162.35,0.00038904,5]
[313055480,1706695850712,-1335.77,0.00038904,5]
[313055481,1706695850724,-623.00849696,0.00038904,5]
[313055482,1706695850733,-280.03281352,0.00038904,5]
[313055483,1706695850743,-1625.36,0.00038904,5]
[313055484,1706695850752,-1629.93,0.00038904,5]
[313055485,1706695850761,-500.0,0.00038904,5]
[313055486,1706695850771,-25380.25,0.00038904,5]
[313055487,1706695850780,-500.0,0.00038904,5]
[313055488,1706695850789,-500.0,0.00038904,5]
[313055489,1706695850798,-673.0,0.00038904,5]
[313055490,1706695850808,-591.85298595,0.00038904,5]
[313055491,1706695850817,-921.65,0.00038904,5]
[313055492,1706695850827,-761.91,0.00038904,5]
[313055493,1706695850837,-910.29,0.00038904,5]
[313055494,1706695850847,-500.0,0.00038904,5]
[313055495,1706695850856,-1503.4,0.00038904,5]
[313055496,1706695850866,-500.0,0.00038904,5]
[313055497,1706695850875,-500.0,0.00038904,5]
[313055498,1706695850884,-500.0,0.00038904,5]
[313055499,1706695850894,-3730.32,0.00038904,5]
[313055500,1706695850903,-603.33470248,0.00038904,5]
[313055501,1706695850912,-1567.21,0.00038904,5]
[313055502,1706695850922,-667.11,0.00038904,5]
[313055503,1706695850931,-500.0,0.00038904,5]
[313055504,1706695850941,-641.89392548,0.00038904,5]
[313055505,1706695850952,-500.0,0.00038904,5]
[313055506,1706695850961,-500.0,0.00038904,5]
[313055507,1706695850971,-1348.03,0.00038904,5]
[313055508,1706695850980,-1712.91,0.00038904,5]
[313055509,1706695850990,-500.0,0.00038904,5]
[313055510,1706695850999,-500.0,0.00038904,5]
[313055511,1706695851008,-844.62399618,0.00038904,5]
[313055512,1706695851267,-689.69600382,0.00038904,5]
[313055513,1706695851278,-1320.8,0.00038904,5]
[313055514,1706695851288,-702.01,0.00038904,5]
[313055515,1706695851297,-500.0,0.00038904,5]
[313055516,1706695851307,-500.0,0.00038904,5]
[313055517,1706695851316,-2893.55,0.00038904,5]
[313055518,1706695851326,-508.69,0.00038904,5]
[313055519,1706695851335,-535.55,0.00038904,5]
[313055520,1706695851344,-787.0,0.00038904,5]
[313055521,1706695851353,-500.0,0.00038904,5]
[313055522,1706695851362,-500.0,0.00038904,5]
[313055523,1706695851371,-500.0,0.00038904,5]
[313055524,1706695851381,-500.0,0.00038904,5]
[313055525,1706695851391,-66.16749618,0.00038904,5]
[313055526,1706695851980,155.0,0.0002,2]
[313055527,1706695852009,-1466.18098822,0.00035818,4]
[313055528,1706695852020,-1868.7265715,0.00035818,4]
[313055529,1706695852031,-265.2734285,0.00038904,5]
[313055530,1706695852043,-168.55907532,0.00038904,5]
[313055531,1706695852053,-1313.71,0.00038904,5]
[313055532,1706695852062,-500.0,0.00038904,5]
[313055533,1706695852072,-1227.12,0.00038904,5]
[313055534,1706695852082,-500.0,0.00038904,5]
[313055535,1706695852091,-500.0,0.00038904,5]
[313055536,1706695852100,-710.95,0.00038904,5]
[313055537,1706695852110,-500.0,0.00038904,5]
[313055538,1706695852119,-500.0,0.00038904,5]
[313055539,1706695852128,-500.0,0.00038904,5]
[313055540,1706695852138,-682.32,0.00038904,5]
[313055541,1706695852148,-500.0,0.00038904,5]
[313055542,1706695852157,-500.0,0.00038904,5]
[313055543,1706695852166,-500.0,0.00038904,5]
[313055544,1706695852175,-582.14,0.00038904,5]
[313055545,1706695852185,-500.0,0.00038904,5]
[313055546,1706695852196,-500.0,0.00038904,5]
[313055547,1706695852205,-596.96,0.00038904,5]
[313055548,1706695852215,-780.24092468,0.00038904,5]
[313055549,1706695852226,-896.23907532,0.00038904,5]
[313055550,1706695852236,-272.4976355,0.00038904,5]
[313055551,1706695852249,-340.6023645,0.00038904,5]
[313055552,1706695852258,-623.55,0.00038904,5]
[313055553,1706695852267,-500.0,0.00038904,5]
[313055554,1706695852277,-542.89792468,0.00038904,5]
[313055555,1706695854120,-598.95207532,0.00038904,5]
[313055556,1706695854130,-775.72,0.00038904,5]
[313055557,1706695854139,-830.86,0.00038904,5]
[313055558,1706695854148,-500.0,0.00038904,5]
[313055559,1706695854158,-500.0,0.00038904,5]
[313055560,1706695854167,-1448.14,0.00038904,5]
[313055561,1706695854177,-500.0,0.00038904,5]
[313055562,1706695854187,-500.0,0.00038904,5]
[313055563,1706695854197,-500.0,0.00038904,5]
[313055564,1706695854208,-1810.09,0.00038904,5]
[313055565,1706695854218,-500.0,0.00038904,2]
[313055566,1706695854228,-500.0,0.00038904,5]
[313055567,1706695854237,-580.74,0.00038904,5]
[313055568,1706695854246,-500.0,0.00038904,5]
[313055569,1706695854256,-500.0,0.00038904,5]
[313055570,1706695854265,-500.0,0.00038904,5]
[313055571,1706695854275,-500.0,0.00038904,2]
[313055572,1706695854285,-2113.56,0.00038904,5]
[313055573,1706695854294,-813.84,0.00038904,5]
[313055574,1706695854304,-500.0,0.00038904,5]
[313055575,1706695854314,-500.0,0.00038904,5]
[313055576,1706695854324,-500.0,0.00038904,5]
[313055577,1706695854333,-500.0,0.00038904,5]
[313055578,1706695854343,-500.0,0.00038904,5]
[313055579,1706695854352,-500.0,0.00038904,5]
[313055580,1706695854361,-1072.18,0.00038904,5]
[313055581,1706695854371,-3011.0,0.00038969,2]
[313055582,1706695854381,-80362.2147739,0.0003898,4]
[313055583,1706695854391,-50183.3924604,0.0003899,4]
[313055584,1706695854787,184.91163219,0.00022,2]
[313055585,1706695857929,2327.96064877,0.00023099,2]
[313055586,1706695869417,155.0,0.0002,2]
[313055587,1706695887413,189.13904528,0.0002,2]
[313055588,1706695891927,2328.73849707,0.00023099,2]
[313055589,1706695894858,150.0,0.000231,2]
[313055590,1706695911932,2328.73849707,0.00023099,2]
[313055591,1706695929934,2326.40495217,0.00023099,2]
[313055592,1706695951931,1945.99041422,0.00023099,2]
[313055593,1706696069377,150.0,0.00023014,13]
[313055594,1706696106509,150.0,0.0002274,14]
[313055595,1706696333987,163.0,0.000231,2]
[313055596,1706696644238,150.0,0.00029,30]
[313055597,1706696648039,2533.9105,0.00023056,2]
[313055598,1706696765851,150.0,0.0003125,120]
[313055608,1706696994113,2976.2579,0.0002302,2]
[313055640,1706697031525,-561.68945525,0.00023113,2]
[313055642,1706697031537,-351.78284902,0.00023113,2]
[313055645,1706697031548,-466.63503773,0.00023113,2]
[313055649,1706697031582,-2254.91855297,0.00023113,2]
[313055651,1706697031591,-2016.78944703,0.00023114,2]
[313055654,1706697031637,-296.3263743,0.00023114,2]
[313055656,1706697031646,-144.5387257,0.00023114,2]
[313055665,1706697031799,-400.0,0.00023114,2]
[313055680,1706697033913,150.0,0.00023014,10]
[313055691,1706697037545,-506.68463745,0.00023112,2]
[313055693,1706697037557,-2646.23638208,0.00023112,2]
[313055695,1706697037567,-715.46219081,0.00023113,2]
[313055696,1706697037602,-3833.21694403,0.00023113,2]
[313055697,1706697037659,-2142.32527762,0.00023112,2]
[313055698,1706697037669,-4566.62917514,0.00023113,2]
[313055699,1706697037794,-256.46769848,0.00023113,2]
[313055709,1706697040090,-347.88143186,0.00023113,2]
[313055710,1706697040148,-4829.0,0.00023113,2]
[313055711,1706697040203,-264.4956,0.00023113,2]
[313055712,1706697040341,-2753.71953433,0.00023113,2]
[313055713,1706697040350,-6197.98849583,0.00023113,2]
[313055714,1706697040360,-4361.38992966,0.00023113,2]
[313055715,1706697040369,-2954.57416026,0.00023113,2]
[313055716,1706697040378,-529.04803812,0.00023114,2]
[313055717,1706697040388,-421.03960501,0.00023114,2]
[313055718,1706697040399,-970.53281602,0.00023114,2]
[313055719,1706697040409,-2482.12405516,0.00023114,2]
[313055720,1706697040418,-3051.43926374,0.00023114,2]
[313055721,1706697040428,-1048.26100712,0.00023114,2]
[313055722,1706697040437,-3198.37181468,0.00023114,2]
[313055723,1706697040447,-1000.0,0.00023114,2]
[313055724,1706697040456,-1044.13958215,0.00023114,2]
[313055725,1706697040465,-4499.68676317,0.00023114,2]
[313055726,1706697040474,-2325.91196662,0.00023114,2]
[313055727,1706697040484,-2605.00032238,0.00023115,2]
[313055728,1706697040493,-1439.0,0.00023125,2]
[313055729,1706697040503,-157.56525999,0.00023162,2]
[313055730,1706697040512,-499.99,0.00023175,2]
[313055731,1706697040521,-350.21,0.00023175,2]
[313055732,1706697040531,-8897.67,0.00023264,2]
[313055733,1706697040540,-1250.0,0.00025,3]
[313055734,1706697040549,-155.0,0.0003,2]
[313055735,1706697040558,-500.0,0.0003125,2]
[313055736,1706697040568,-150.0,0.000324,2]
[313055737,1706697040577,-465.25,0.00032558,2]
[313055738,1706697040587,-1000.0,0.00032576,2]
[313055739,1706697040597,-159.92,0.00033322,2]
[313055740,1706697040607,-1313.64,0.00033322,2]
[313055741,1706697040616,-4259.85,0.00033322,2]
[313055742,1706697040625,-250.0,0.00033322,2]
[313055743,1706697040634,-160.0,0.00033482,120]
[313055744,1706697040644,-1521.34,0.00033498,2]
[313055745,1706697040653,-493.17,0.0003355,2]
[313055746,1706697040662,-150.0,0.00033662,2]
[313055747,1706697040672,-250.0,0.00033692,111]
[313055748,1706697040681,-2000.0,0.00033699,2]
[313055749,1706697040690,-179.13,0.00033746,10]
[313055750,1706697040698,-19959.65611102,0.00033798,2]
[313055753,1706697042684,-3940.34388898,0.00033798,2]
[313055754,1706697042694,-808.7,0.00034179,2]
[313055755,1706697042703,-186.32,0.00034207,2]
[313055756,1706697042713,-2209.65,0.00034345,2]
[313055757,1706697042721,-200.0,0.00034345,2]
[313055758,1706697042730,-200.0,0.00034386,2]
[313055759,1706697042740,-1036.94,0.00034454,2]
[313055760,1706697042750,-3323.6878,0.00034466,2]
[313055761,1706697042759,-1676.74,0.00034471,34]
[313055762,1706697042769,-3011.0,0.00034566,2]
[313055763,1706697042778,-2705.0,0.00034706,2]
[313055764,1706697042786,-200.0,0.00034762,2]
[313055765,1706697042795,-186.32,0.00034801,2]
[313055766,1706697042806,-465.25,0.00034822,2]
[313055767,1706697042815,-1906.71,0.00034875,2]
[313055768,1706697042824,-221.51654335,0.00035,4]
[313055769,1706697042833,-186.32,0.00035396,2]
[313055770,1706697042843,-1326.8436813,0.00035775,2]
[313055771,1706697042852,-229.71119922,0.00035817,4]
[313055772,1706697042861,-808.7,0.00035823,2]
[313055773,1706697042870,-186.32,0.0003599,2]
[313055774,1706697042879,-1326.8436813,0.0003612,2]
[313055775,1706697042889,-3512.8063,0.00036189,2]
[313055776,1706697042898,-1326.8436813,0.00036251,2]
[313055777,1706697042908,-1326.8436813,0.0003657,2]
[313055778,1706697042917,-250.0,0.00036605,2]
[313055779,1706697042927,-1000.0,0.00036648,2]
[313055780,1706697042936,-150.0,0.00036678,2]
[313055781,1706697042946,-1326.8436813,0.00036824,2]
[313055782,1706697042955,-1637.36062114,0.00037039,4]
[313055783,1706697042964,-1326.8436813,0.00037066,2]
[313055784,1706697042974,-465.25,0.00037086,2]
[313055785,1706697042984,-808.7,0.00037466,2]
[313055786,1706697042993,-1326.8436813,0.00037478,2]
[313055787,1706697043003,-4000.0,0.000375,2]
[313055788,1706697043012,-3011.0,0.00037566,2]
[313055789,1706697043025,-160.0,0.00037668,120]
[313055791,1706697043034,-1326.8436813,0.00037736,2]
[313055793,1706697043043,-153.05,0.000378,3]
[313055794,1706697043052,-153.05,0.000378,3]
[313055796,1706697043062,-353.29,0.000379,2]
[313055798,1706697043072,-500.0,0.000379,2]
[313055800,1706697043081,-1326.8436813,0.0003792,2]
[313055801,1706697043090,-1326.8436813,0.00038144,2]
[313055803,1706697043100,-1333.0026,0.00038256,2]
[313055805,1706697043110,-263.334,0.00038256,2]
[313055806,1706697043119,-1208.9645,0.00038256,2]
[313055807,1706697043128,-651.52171359,0.00038256,8]
[313055808,1706697043137,-361.28072426,0.00038352,4]
[313055809,1706697043147,-954.70306201,0.00038353,4]
[313055810,1706697043156,-365.62575765,0.00038354,15]
[313055811,1706697043165,-199.69563475,0.00038354,4]
[313055812,1706697043175,-1561.20362432,0.00038354,4]
[313055813,1706697043187,-253.2888996,0.00038354,4]
[313055814,1706697043221,-705.3046008,0.00037565,4]
[313055821,1706697045582,-1280.958948,0.00023113,2]
[313055824,1706697045638,-1119.533309,0.00023113,2]
[313055825,1706697045746,-204.50806538,0.00023113,2]
[313055826,1706697045756,-489.64027347,0.00035903,2]
[313055827,1706697045803,-23410.35972653,0.00035903,2]
[313055828,1706697045813,-500.77420377,0.00037565,4]
[313055829,1706697045821,-5347.23452715,0.00037565,4]
[313055830,1706697045831,-1104.58866189,0.00038354,4]
[313055831,1706697045842,-1500.0,0.00038354,4]
[313055832,1706697045852,-4282.43045022,0.00038354,4]
[313055833,1706697045862,-946.52862208,0.00038354,4]
[313055834,1706697045871,-1063.25445981,0.00038354,4]
[313055835,1706697045881,-500.0,0.00038356,15]
[313055836,1706697045890,-1000.0,0.00038356,2]
[313055837,1706697045900,-500.0,0.00038356,5]
[313055838,1706697045909,-609.60054127,0.00038356,5]
[313055839,1706697045919,-500.78513457,0.00038356,5]
[313055840,1706697045929,-1000.0,0.00038356,120]
[313055841,1706697045939,-500.0,0.00038356,2]
[313055842,1706697045949,-303.69284901,0.00038356,5]
[313055843,1706697045958,-500.0,0.00038356,5]
[313055844,1706697045968,-516.39411435,0.00038356,5]
[313055846,1706697045977,-392.14753698,0.00038356,10]
[313055847,1706697045986,-596.64703699,0.00038356,5]
[313055849,1706697045995,-500.0,0.00038356,5]
[313055850,1706697046004,-500.0,0.00038356,5]
[313055852,1706697046013,-500.0,0.00038356,5]
[313055854,1706697046024,-500.0,0.00038356,5]
[313055856,1706697046034,-500.0,0.00038356,2]
[313055858,1706697046043,-813.98,0.00038356,2]
[313055860,1706697046052,-500.0,0.00038356,5]
[313055861,1706697046061,-500.0,0.00038356,5]
[313055863,1706697046072,-711.11,0.00038356,5]
[313055865,1706697046081,-500.0,0.00038356,5]
[313055867,1706697046091,-500.0,0.00038356,5]
[313055869,1706697046101,-500.0,0.00038356,5]
[313055871,1706697046111,-500.0,0.00038356,5]
[313055872,1706697046120,-500.0,0.00038356,5]
[313055873,1706697046129,-750.09,0.00038356,7]
[313055874,1706697046138,-500.0,0.00038356,5]
[313055875,1706697046148,-707.09,0.00038356,2]
[313055876,1706697046157,-500.0,0.00038356,5]
[313055877,1706697046166,-500.0,0.00038356,5]
[313055878,1706697046177,-500.0,0.00038356,5]
[313055879,1706697046186,-517.78,0.00038356,5]
[313055880,1706697046195,-500.0,0.00038356,5]
[313055881,1706697046205,-500.0,0.00038356,5]
[313055882,1706697046215,-500.0,0.00038356,2]
[313055883,1706697046224,-500.0,0.00038356,5]
[313055884,1706697046234,-500.0,0.00038356,5]
[313055885,1706697046243,-500.0,0.00038356,5]
[313055887,1706697046253,-500.0,0.00038356,5]
[313055888,1706697046262,-500.0,0.00038356,5]
[313055890,1706697046272,-500.0,0.00038356,5]
[313055892,1706697046281,-500.0,0.00038356,5]
[313055895,1706697046291,-500.0,0.00038356,5]
[313055897,1706697046300,-500.0,0.00038356,5]
[313055898,1706697046310,-500.0,0.00038356,5]
[313055900,1706697046319,-500.0,0.00038356,5]
[313055903,1706697046328,-500.0,0.00038356,5]
[313055905,1706697046337,-500.0,0.00038356,5]
[313055907,1706697046347,-500.0,0.00038356,5]
[313055908,1706697046356,-500.0,0.00038356,5]
[313055911,1706697046366,-500.0,0.00038356,5]
[313055912,1706697046375,-500.0,0.00038356,5]
[313055915,1706697046384,-500.0,0.00038356,5]
[313055917,1706697046394,-500.0,0.00038356,5]
[313055919,1706697046404,-500.0,0.00038356,5]
[313055921,1706697046413,-500.0,0.00038356,5]
[313055922,1706697046422,-500.0,0.00038356,5]
[313055925,1706697046432,-1292.38,0.00038356,5]
[313055926,1706697046441,-500.0,0.00038356,5]
[313055929,1706697046451,-500.0,0.00038356,5]
[313055931,1706697046460,-500.0,0.00038356,5]
[313055933,1706697046469,-500.0,0.00038356,5]
[313055935,1706697046479,-500.0,0.00038356,5]
[313055937,1706697046489,-500.0,0.00038356,5]
[313055939,1706697046498,-1644.4,0.00038356,5]
[313055940,1706697046507,-500.0,0.00038356,5]
[313055942,1706697046516,-500.0,0.00038356,5]
[313055944,1706697046525,-573.1,0.00038356,5]
[313055946,1706697046534,-500.0,0.00038356,5]
[313055947,1706697046543,-500.0,0.00038356,2]
[313055948,1706697046552,-500.0,0.00038356,5]
[313055949,1706697046562,-500.0,0.00038356,5]
[313055950,1706697046572,-500.0,0.00038356,5]
[313055951,1706697046582,-500.0,0.00038356,5]
[313055952,1706697046591,-500.0,0.00038356,5]
[313055953,1706697046601,-500.0,0.00038356,5]
[313055954,1706697046611,-500.0,0.00038356,5]
[313055955,1706697046620,-532.35,0.00038356,5]
[313055956,1706697046630,-982.83,0.00038356,5]
[313055957,1706697046639,-3471.79,0.00038356,5]
[313055958,1706697046648,-543.03,0.00038356,5]
[313055959,1706697046657,-500.0,0.00038356,5]
[313055960,1706697046669,-650.95,0.00038356,5]
[313055961,1706697046680,-1707.32,0.00038356,5]
[313055962,1706697046689,-500.0,0.00038356,5]
[313055963,1706697046699,-500.0,0.00038356,5]
[313055964,1706697046708,-1044.16,0.00038356,5]
[313055965,1706697046717,-730.06,0.00038356,5]
[313055966,1706697046726,-1415.99,0.00038356,5]
[313055967,1706697046736,-504.65,0.00038356,5]
[313055968,1706697046745,-500.0,0.00038356,5]
[313055969,1706697046755,-3259.69,0.00038356,5]
[313055970,1706697046764,-770.61,0.00038356,5]
[313055971,1706697046774,-1887.5,0.00038356,5]
[313055972,1706697046783,-500.0,0.00038356,5]
[313055973,1706697046792,-500.0,0.00038356,5]
[313055974,1706697046802,-500.0,0.00038356,5]
[313055975,1706697046811,-1269.52,0.00038356,5]
[313055976,1706697046821,-500.0,0.00038356,5]
[313055977,1706697046830,-500.0,0.00038356,5]
[313055978,1706697046839,-2488.03,0.00038356,5]
[313055979,1706697046848,-593.36,0.00038356,5]
[313055980,1706697046858,-846.77,0.00038356,5]
[313055981,1706697046867,-500.0,0.00038356,5]
[313055982,1706697046876,-500.0,0.00038356,5]
[313055983,1706697046886,-835.12,0.00038356,5]
[313055984,1706697046895,-500.0,0.00038356,5]
[313055985,1706697046905,-500.0,0.00038356,5]
[313055986,1706697046914,-999.87,0.00038356,5]
[313055987,1706697046924,-771.51,0.00038356,5]
[313055988,1706697046933,-781.87,0.00038356,5]
[313055989,1706697046942,-602.08,0.00038356,5]
[313055990,1706697046952,-752.21,0.00038356,5]
[313055991,1706697046961,-500.0,0.00038356,5]
[313055992,1706697046971,-544.95,0.00038356,5]
[313055993,1706697046981,-623.65,0.00038356,5]
[313055994,1706697046990,-974.77,0.00038356,5]
[313055995,1706697046999,-523.63,0.00038356,5]
[313055996,1706697047009,-500.0,0.00038356,5]
[313055997,1706697047021,-706.32,0.00038356,5]
[313055998,1706697047030,-500.0,0.00038356,5]
[313055999,1706697047040,-1571.13,0.00038356,5]
[313056000,1706697047050,-811.47,0.00038356,5]
[313056001,1706697047060,-1870.03,0.00038356,5]
[313056002,1706697047069,-546.71226796,0.00038356,5]
[313056003,1706697047077,-1105.23,0.00038356,5]
[313056004,1706697047087,-500.0,0.00038356,5]
[313056005,1706697047096,-939.62,0.00038356,5]
[313056006,1706697047106,-500.0,0.00038356,5]
[313056007,1706697047115,-581.77,0.00038356,5]
[313056008,1706697047125,-500.0,0.00038356,5]
[313056009,1706697047134,-500.0,0.00038356,5]
[313056010,1706697047144,-500.0,0.00038356,5]
[313056011,1706697047153,-946.79,0.00038356,5]
[313056012,1706697047163,-4062.63,0.00038356,5]
[313056013,1706697047173,-3839.69,0.00038356,5]
[313056014,1706697047182,-500.0,0.00038356,5]
[313056015,1706697047192,-500.0,0.00038356,5]
[313056016,1706697047202,-616.92,0.00038356,5]
[313056017,1706697047211,-500.0,0.00038356,5]
[313056018,1706697047222,-1494.11,0.00038356,5]
[313056019,1706697047231,-723.57,0.00038356,5]
[313056020,1706697047240,-530.4,0.00038356,5]
[313056021,1706697047249,-23265.23,0.00038356,5]
[313056022,1706697047259,-789.48,0.00038356,5]
[313056023,1706697047269,-514.62,0.00038356,5]
[313056024,1706697047278,-1145.64,0.00038356,5]
[313056025,1706697047288,-500.0,0.00038356,5]
[313056026,1706697047297,-500.0,0.00038356,5]
[313056027,1706697047306,-592.35,0.00038356,5]
[313056028,1706697047315,-500.0,0.00038356,5]
[313056029,1706697047324,-1029.08,0.00038356,5]
[313056030,1706697047334,-500.0,0.00038356,5]
[313056031,1706697047343,-500.0,0.00038356,5]
[313056032,1706697047353,-500.0,0.00038356,5]
[313056033,1706697047362,-1235.7,0.00038356,5]
[313056034,1706697047372,-698.42,0.00038356,5]
[313056035,1706697047381,-500.0,0.00038356,5]
[313056036,1706697047391,-1932.62,0.00038356,5]
[313056037,1706697047401,-1436.6,0.00038356,5]
[313056038,1706697047410,-500.0,0.00038356,5]
[313056039,1706697047420,-790.07,0.00038356,5]
[313056040,1706697047432,-500.0,0.00038356,5]
[313056041,1706697047442,-500.0,0.00038356,5]
[313056042,1706697047452,-1065.49,0.00038356,5]
[313056043,1706697047462,-500.0,0.00038356,5]
[313056044,1706697047472,-834.43,0.00038356,5]
[313056045,1706697047481,-2793.69,0.00038356,5]
[313056046,1706697047491,-500.0,0.00038356,5]
[313056047,1706697047500,-500.0,0.00038356,5]
[313056048,1706697047510,-652.92,0.00038356,5]
[313056049,1706697047519,-500.0,0.00038356,5]
[313056050,1706697047528,-1489.92,0.00038356,5]
[313056051,1706697047537,-500.0,0.00038356,5]
[313056052,1706697047547,-1124.86,0.00038356,5]
[313056053,1706697047557,-844.84,0.00038356,5]
[313056054,1706697047566,-625.46,0.00038356,5]
[313056055,1706697047575,-500.0,0.00038356,5]
[313056056,1706697047585,-643.51,0.00038356,5]
[313056057,1706697047594,-500.0,0.00038356,5]
[313056058,1706697047603,-3419.46,0.00038356,5]
[313056059,1706697047613,-500.0,0.00038356,5]
[313056060,1706697047621,-500.0,0.00038356,5]
[313056061,1706697047631,-6072.84,0.00038356,5]
[313056062,1706697047641,-1536.77,0.00038356,5]
[313056063,1706697047650,-611.51,0.00038356,5]
[313056064,1706697047659,-500.0,0.00038356,5]
[313056065,1706697047669,-500.0,0.00038356,5]
[313056066,1706697047679,-500.0,0.00038356,5]
[313056067,1706697047688,-500.0,0.00038356,5]
[313056068,1706697047697,-500.0,0.00038356,5]
[313056069,1706697047706,-761.62,0.00038356,5]
[313056070,1706697047714,-500.0,0.00038356,5]
[313056071,1706697047723,-1210.73,0.00038356,5]
[313056072,1706697047732,-500.0,0.00038356,5]
[313056073,1706697047742,-500.0,0.00038356,5]
[313056074,1706697047751,-651.71,0.00038356,5]
[313056075,1706697047760,-500.0,0.00038356,5]